[Event "Late-Titled-Tuesday-Blitz-February-20-2024"]
[Site "Chess.com"]
[Date "2024.02.20"]
[Round "10"]
[White "OverallStranger"]
[Black "IMRosen"]
[Result "0-1"]
[WhiteElo "2366"]
[BlackElo "2663"]
[TimeControl "180+1"]
[EndTime "15:54:33 PST"]
[Termination "IMRosen won by resignation"]

1. d4 {[%clk 0:03:00.9]} 1... d5 {[%clk 0:02:59.3]} 2. c4 {[%clk 0:03:00.6]}
2... e6 {[%clk 0:02:59.6]} 3. Nc3 {[%clk 0:03:00.3]} 3... Nf6 {[%clk 0:02:59.6]}
4. cxd5 {[%clk 0:03:00.7]} 4... exd5 {[%clk 0:03:00]} 5. Bg5 {[%clk 0:03:01.1]}
5... c6 {[%clk 0:03:00.5]} 6. e3 {[%clk 0:03:00.8]} 6... Bd6 {[%clk 0:03:00.3]}
7. Qc2 {[%clk 0:02:59.6]} 7... O-O {[%clk 0:02:58.7]} 8. Bd3 {[%clk 0:02:55.3]}
8... h6 {[%clk 0:02:58.9]} 9. Bh4 {[%clk 0:02:55.4]} 9... Re8 {[%clk 0:02:58.9]}
10. Nf3 {[%clk 0:02:55.6]} 10... Be6 {[%clk 0:02:58.7]} 11. O-O {[%clk
0:02:53.8]} 11... Nbd7 {[%clk 0:02:58.3]} 12. Rab1 {[%clk 0:02:49.8]} 12... a5
{[%clk 0:02:57.8]} 13. a3 {[%clk 0:02:50.1]} 13... Rc8 {[%clk 0:02:57.4]} 14. b4
{[%clk 0:02:49.9]} 14... axb4 {[%clk 0:02:57.8]} 15. axb4 {[%clk 0:02:50.8]}
15... b5 {[%clk 0:02:58.5]} 16. Bg3 {[%clk 0:02:42.8]} 16... Bxg3 {[%clk
0:02:58]} 17. hxg3 {[%clk 0:02:43.4]} 17... Ng4 {[%clk 0:02:58.7]} 18. Ne2
{[%clk 0:02:35.5]} 18... Nb6 {[%clk 0:02:56.4]} 19. Nc1 {[%clk 0:02:34.3]} 19...
Nc4 {[%clk 0:02:54.3]} 20. Nb3 {[%clk 0:02:34.1]} 20... Na3 {[%clk 0:02:54.5]}
21. Qb2 {[%clk 0:02:33.4]} 21... Nxb1 {[%clk 0:02:54.7]} 22. Qxb1 {[%clk
0:02:34.1]} 22... Ra8 {[%clk 0:02:35.7]} 23. Nc5 {[%clk 0:02:32.7]} 23... Qd6
{[%clk 0:02:34]} 24. Qb3 {[%clk 0:02:24.4]} 24... Ra7 {[%clk 0:02:30.5]} 25. Bc2
{[%clk 0:02:22.1]} 25... g6 {[%clk 0:02:28.2]} 26. Qb1 {[%clk 0:02:13.8]} 26...
Kg7 {[%clk 0:02:27.6]} 27. Nh4 {[%clk 0:02:09.4]} 27... Bd7 {[%clk 0:02:07.6]}
28. Qd1 {[%clk 0:01:54.8]} 28... h5 {[%clk 0:02:06.4]} 29. Nf3 {[%clk
0:01:48.7]} 29... Rea8 {[%clk 0:02:03.2]} 30. Bb1 {[%clk 0:01:41.6]} 30... Qf6
{[%clk 0:02:01.5]} 31. Qd3 {[%clk 0:01:38.8]} 31... Bf5 {[%clk 0:02:01.2]} 32.
e4 {[%clk 0:01:36.3]} 32... dxe4 {[%clk 0:01:59.7]} 33. Nxe4 {[%clk 0:01:37.2]}
33... Bxe4 {[%clk 0:01:57.8]} 34. Qxe4 {[%clk 0:01:37.2]} 34... Rd8 {[%clk
0:01:55.5]} 35. Rc1 {[%clk 0:01:29.7]} 35... Rd6 {[%clk 0:01:55.6]} 36. Ne5
{[%clk 0:01:28.1]} 36... Qxf2+ {[%clk 0:01:47.4]} 37. Kh1 {[%clk 0:01:27.1]}
37... Rxd4 {[%clk 0:01:23.6]} 38. Nxg4 {[%clk 0:01:24.8]} 38... hxg4 {[%clk
0:01:22.2]} 39. Qe5+ {[%clk 0:01:21.3]} 39... f6 {[%clk 0:01:20.6]} 40. Qe8
{[%clk 0:01:06.8]} 40... Rf7 {[%clk 0:01:01.3]} 41. Re1 {[%clk 0:00:38]} 41...
Rd5 {[%clk 0:00:51.1]} 42. Bxg6 {[%clk 0:00:22.1]} 42... Kxg6 {[%clk 0:00:43.9]}
43. Qg8+ {[%clk 0:00:16.9]} 43... Rg7 {[%clk 0:00:43.1]} 44. Qe8+ {[%clk
0:00:17.3]} 44... Kh6 {[%clk 0:00:42.9]} 45. Qh8+ {[%clk 0:00:15.3]} 45... Rh7
{[%clk 0:00:40.8]} 0-1

[Event "Late-Titled-Tuesday-Blitz-February-20-2024"]
[Site "Chess.com"]
[Date "2024.02.20"]
[Round "10"]
[White "Agentxya"]
[Black "cukricek"]
[Result "1-0"]
[WhiteElo "2292"]
[BlackElo "2439"]
[TimeControl "180+1"]
[EndTime "15:54:45 PST"]
[Termination "Agentxya won on time"]

1. e4 {[%clk 0:03:00.9]} 1... c5 {[%clk 0:02:59.9]} 2. Nf3 {[%clk 0:02:59]} 2...
g6 {[%clk 0:03:00.3]} 3. d4 {[%clk 0:02:55.5]} 3... cxd4 {[%clk 0:03:00.9]} 4.
Nxd4 {[%clk 0:02:55.6]} 4... Nc6 {[%clk 0:03:01.3]} 5. c4 {[%clk 0:02:53]} 5...
Nf6 {[%clk 0:03:00.7]} 6. Nc3 {[%clk 0:02:52.8]} 6... d6 {[%clk 0:03:00.5]} 7.
Be2 {[%clk 0:02:51.9]} 7... Nxd4 {[%clk 0:03:00.3]} 8. Qxd4 {[%clk 0:02:51.8]}
8... Bg7 {[%clk 0:03:00.8]} 9. Be3 {[%clk 0:02:52.1]} 9... O-O {[%clk
0:03:01.3]} 10. Qd2 {[%clk 0:02:52.7]} 10... a5 {[%clk 0:03:01]} 11. O-O {[%clk
0:02:52.4]} 11... a4 {[%clk 0:03:01.1]} 12. Rab1 {[%clk 0:02:47.5]} 12... Qa5
{[%clk 0:03:00.4]} 13. Rfc1 {[%clk 0:02:40.4]} 13... Be6 {[%clk 0:02:56.6]} 14.
f3 {[%clk 0:02:37.6]} 14... Rfc8 {[%clk 0:02:56.1]} 15. b3 {[%clk 0:02:38]}
15... axb3 {[%clk 0:02:55.2]} 16. axb3 {[%clk 0:02:38.1]} 16... Qb4 {[%clk
0:02:55.7]} 17. Kf2 {[%clk 0:02:02.2]} 17... Nd7 {[%clk 0:02:53.5]} 18. Nb5
{[%clk 0:01:48]} 18... Qxd2 {[%clk 0:02:51.7]} 19. Bxd2 {[%clk 0:01:48.9]} 19...
Ra2 {[%clk 0:02:50.3]} 20. Be3 {[%clk 0:01:49.2]} 20... Nc5 {[%clk 0:02:43.7]}
21. Ke1 {[%clk 0:01:38.6]} 21... Bd7 {[%clk 0:02:29]} 22. Nc3 {[%clk 0:01:30]}
22... Ra3 {[%clk 0:02:24.5]} 23. Nd5 {[%clk 0:01:27]} 23... Kf8 {[%clk
0:02:16.5]} 24. Nb6 {[%clk 0:01:21.6]} 24... Rc7 {[%clk 0:02:04]} 25. Nd5 {[%clk
0:00:57.6]} 25... Rc6 {[%clk 0:01:35.5]} 26. Bf2 {[%clk 0:00:47.2]} 26... Nxb3
{[%clk 0:01:22.3]} 27. Rd1 {[%clk 0:00:45.7]} 27... Rca6 {[%clk 0:01:03.5]} 28.
c5 {[%clk 0:00:38.4]} 28... R6a5 {[%clk 0:00:44.1]} 29. cxd6 {[%clk 0:00:30.5]}
29... exd6 {[%clk 0:00:45]} 30. Bb6 {[%clk 0:00:30.1]} 30... Ra8 {[%clk
0:00:31.3]} 31. Bc7 {[%clk 0:00:24.6]} 31... Be5 {[%clk 0:00:04.1]} 32. f4
{[%clk 0:00:24.6]} 32... Kg8 {[%clk 0:00:01]} 33. fxe5 {[%clk 0:00:24.2]} 33...
dxe5 {[%clk 0:00:01.9]} 34. Bxe5 {[%clk 0:00:21.8]} 34... Nc5 {[%clk 0:00:01.3]}
35. Bf3 {[%clk 0:00:19.4]} 1-0

[Event "Late-Titled-Tuesday-Blitz-February-20-2024"]
[Site "Chess.com"]
[Date "2024.02.20"]
[Round "10"]
[White "McCarthyStone"]
[Black "ritanovikova"]
[Result "0-1"]
[WhiteElo "2344"]
[BlackElo "2231"]
[TimeControl "180+1"]
[EndTime "15:54:49 PST"]
[Termination "ritanovikova won on time"]

1. e4 {[%clk 0:03:00.9]} 1... d5 {[%clk 0:02:58.8]} 2. e5 {[%clk 0:02:55.9]}
2... f6 {[%clk 0:02:57.7]} 3. exf6 {[%clk 0:02:55.8]} 3... exf6 {[%clk
0:02:56.3]} 4. d4 {[%clk 0:02:56.7]} 4... Bd6 {[%clk 0:02:54.9]} 5. Bd3 {[%clk
0:02:57.1]} 5... Ne7 {[%clk 0:02:54.1]} 6. Qh5+ {[%clk 0:02:56.6]} 6... Kf8
{[%clk 0:02:39.2]} 7. Nc3 {[%clk 0:02:56.3]} 7... Be6 {[%clk 0:02:29.9]} 8. Nge2
{[%clk 0:02:53.4]} 8... c6 {[%clk 0:02:28.5]} 9. Bf4 {[%clk 0:02:52.1]} 9... Bf7
{[%clk 0:02:25.8]} 10. Qf3 {[%clk 0:02:52.2]} 10... Ng6 {[%clk 0:02:23.4]} 11.
Bxd6+ {[%clk 0:02:51.8]} 11... Qxd6 {[%clk 0:02:21.9]} 12. O-O-O {[%clk
0:02:52.7]} 12... b5 {[%clk 0:02:13.2]} 13. h4 {[%clk 0:02:53.2]} 13... a5
{[%clk 0:01:58.3]} 14. h5 {[%clk 0:02:53.6]} 14... Ne7 {[%clk 0:01:57.8]} 15. h6
{[%clk 0:02:53.4]} 15... g6 {[%clk 0:01:57.1]} 16. Nf4 {[%clk 0:02:48.3]} 16...
a4 {[%clk 0:01:51.9]} 17. Rde1 {[%clk 0:02:41.5]} 17... b4 {[%clk 0:01:49.2]}
18. Nb1 {[%clk 0:02:40.9]} 18... b3 {[%clk 0:01:37.1]} 19. a3 {[%clk 0:02:35.6]}
19... Nd7 {[%clk 0:01:32.2]} 20. Re2 {[%clk 0:02:35.7]} 20... c5 {[%clk
0:01:21.1]} 21. dxc5 {[%clk 0:02:10.9]} 21... Nxc5 {[%clk 0:01:20.1]} 22. Rhe1
{[%clk 0:02:11.6]} 22... Rc8 {[%clk 0:01:01.8]} 23. Rxe7 {[%clk 0:01:57.8]}
23... Qxf4+ {[%clk 0:01:00.6]} 24. Kd1 {[%clk 0:01:10.6]} 24... Nxd3 {[%clk
0:00:55.2]} 25. Qxf4 {[%clk 0:00:04.8]} 25... bxc2+ {[%clk 0:00:45.7]} 26. Kd2
{[%clk 0:00:02.5]} 26... Nxf4 {[%clk 0:00:37.1]} 27. Nc3 {[%clk 0:00:03.1]}
27... d4 {[%clk 0:00:34.4]} 28. Nxa4 {[%clk 0:00:03.7]} 28... c1=Q+ {[%clk
0:00:30.8]} 29. Rxc1 {[%clk 0:00:01.8]} 29... Rxc1 {[%clk 0:00:30.9]} 30. Ra7
{[%clk 0:00:01.9]} 30... Rc8 {[%clk 0:00:26.8]} 31. g3 {[%clk 0:00:02.2]} 31...
Nd5 {[%clk 0:00:24.7]} 32. b4 {[%clk 0:00:02.7]} 32... f5 {[%clk 0:00:23.6]} 33.
b5 {[%clk 0:00:02.6]} 33... Rb8 {[%clk 0:00:23]} 0-1

[Event "Late-Titled-Tuesday-Blitz-February-20-2024"]
[Site "Chess.com"]
[Date "2024.02.20"]
[Round "10"]
[White "GMBenjaminBok"]
[Black "Phamtrangiaphuc2009"]
[Result "0-1"]
[WhiteElo "2974"]
[BlackElo "2514"]
[TimeControl "180+1"]
[EndTime "15:54:54 PST"]
[Termination "Phamtrangiaphuc2009 won on time"]

1. d4 {[%clk 0:03:00.9]} 1... Nf6 {[%clk 0:02:59.5]} 2. c4 {[%clk 0:02:59.4]}
2... e6 {[%clk 0:02:59.1]} 3. Nc3 {[%clk 0:02:59.1]} 3... Bb4 {[%clk 0:02:58.5]}
4. Qc2 {[%clk 0:02:59]} 4... c5 {[%clk 0:02:57.1]} 5. dxc5 {[%clk 0:02:58.9]}
5... O-O {[%clk 0:02:56.8]} 6. a3 {[%clk 0:02:59.2]} 6... Bxc5 {[%clk
0:02:56.6]} 7. Nf3 {[%clk 0:02:59.9]} 7... b6 {[%clk 0:02:56.5]} 8. Bf4 {[%clk
0:02:59.3]} 8... Bb7 {[%clk 0:02:55.1]} 9. Rd1 {[%clk 0:02:59.4]} 9... Nc6
{[%clk 0:02:50]} 10. e3 {[%clk 0:02:58.9]} 10... Nh5 {[%clk 0:02:46.6]} 11. Bg3
{[%clk 0:02:58.3]} 11... Be7 {[%clk 0:02:45.3]} 12. Bd3 {[%clk 0:02:56.7]} 12...
f5 {[%clk 0:02:43.2]} 13. O-O {[%clk 0:02:54]} 13... Nxg3 {[%clk 0:02:43]} 14.
hxg3 {[%clk 0:02:54.9]} 14... Rc8 {[%clk 0:02:42.3]} 15. Be2 {[%clk 0:02:48.9]}
15... Na5 {[%clk 0:02:41.9]} 16. Ne5 {[%clk 0:02:33.3]} 16... d6 {[%clk
0:02:39.4]} 17. b4 {[%clk 0:02:31.5]} 17... Qe8 {[%clk 0:02:37.5]} 18. bxa5
{[%clk 0:02:27]} 18... dxe5 {[%clk 0:02:37.1]} 19. Nb5 {[%clk 0:02:18.5]} 19...
Qxb5 {[%clk 0:02:35.2]} 20. cxb5 {[%clk 0:02:02.5]} 20... Rxc2 {[%clk
0:02:34.2]} 21. Rd7 {[%clk 0:02:03.4]} 21... Rxe2 {[%clk 0:02:32.6]} 22. Rxe7
{[%clk 0:02:01]} 22... Bd5 {[%clk 0:02:22.4]} 23. Rc1 {[%clk 0:01:59.4]} 23...
h5 {[%clk 0:01:43.2]} 24. Rcc7 {[%clk 0:01:54.4]} 24... Kh7 {[%clk 0:01:42.3]}
25. Rxg7+ {[%clk 0:01:49.5]} 25... Kh6 {[%clk 0:01:42.1]} 26. a6 {[%clk
0:01:24.4]} 26... f4 {[%clk 0:01:30.7]} 27. gxf4 {[%clk 0:00:58.1]} 27... exf4
{[%clk 0:01:29.9]} 28. exf4 {[%clk 0:00:57.1]} 28... Rxf4 {[%clk 0:00:38.6]} 29.
f3 {[%clk 0:00:40.8]} 29... h4 {[%clk 0:00:27.5]} 30. Rxa7 {[%clk 0:00:30.5]}
30... Ra4 {[%clk 0:00:19.9]} 31. Rh7+ {[%clk 0:00:07.5]} 31... Kg6 {[%clk
0:00:19.7]} 32. Rag7+ {[%clk 0:00:07.6]} 32... Kf6 {[%clk 0:00:20]} 33. Rg8
{[%clk 0:00:03.2]} 33... Rxa3 {[%clk 0:00:18.9]} 34. Rxh4 {[%clk 0:00:03.3]}
34... Rb2 {[%clk 0:00:16.5]} 35. Rh6+ {[%clk 0:00:02.1]} 35... Ke7 {[%clk
0:00:16.2]} 36. a7 {[%clk 0:00:01.8]} 36... Kd6 {[%clk 0:00:15.6]} 0-1

[Event "Late-Titled-Tuesday-Blitz-February-20-2024"]
[Site "Chess.com"]
[Date "2024.02.20"]
[Round "10"]
[White "boguszp"]
[Black "TheMagician"]
[Result "0-1"]
[WhiteElo "2006"]
[BlackElo "2201"]
[TimeControl "180+1"]
[EndTime "15:54:54 PST"]
[Termination "TheMagician won by checkmate"]

1. d4 {[%clk 0:03:00.9]} 1... Nf6 {[%clk 0:02:58]} 2. Bf4 {[%clk 0:03:01.3]}
2... Nh5 {[%clk 0:02:56.1]} 3. Bg5 {[%clk 0:02:59.4]} 3... h6 {[%clk 0:02:55.1]}
4. Bh4 {[%clk 0:02:59.2]} 4... g5 {[%clk 0:02:54.4]} 5. e4 {[%clk 0:02:58.5]}
5... Nf4 {[%clk 0:02:53.8]} 6. Bg3 {[%clk 0:02:57]} 6... Bg7 {[%clk 0:02:53.1]}
7. h4 {[%clk 0:02:52.9]} 7... c5 {[%clk 0:02:38.5]} 8. hxg5 {[%clk 0:02:48.4]}
8... hxg5 {[%clk 0:02:34.4]} 9. Rxh8+ {[%clk 0:02:48.4]} 9... Bxh8 {[%clk
0:02:34.1]} 10. Nf3 {[%clk 0:02:35.3]} 10... cxd4 {[%clk 0:02:30.5]} 11. Nxg5
{[%clk 0:02:34.4]} 11... Qa5+ {[%clk 0:02:29.8]} 12. Qd2 {[%clk 0:02:28.1]}
12... Qxd2+ {[%clk 0:02:10.3]} 13. Nxd2 {[%clk 0:02:27.1]} 13... e5 {[%clk
0:01:58]} 14. O-O-O {[%clk 0:02:14.9]} 14... Ne6 {[%clk 0:01:45.8]} 15. Ngf3
{[%clk 0:02:10.9]} 15... Nc6 {[%clk 0:01:38.2]} 16. Nc4 {[%clk 0:02:09.1]} 16...
f6 {[%clk 0:01:35.7]} 17. Nd6+ {[%clk 0:02:03.4]} 17... Ke7 {[%clk 0:01:35]} 18.
Nf5+ {[%clk 0:02:03.8]} 18... Kf7 {[%clk 0:01:34.4]} 19. Bc4 {[%clk 0:02:04.1]}
19... Kg6 {[%clk 0:01:25.3]} 20. Rh1 {[%clk 0:02:02.7]} 20... Bg7 {[%clk
0:01:17.7]} 21. N3h4+ {[%clk 0:01:53.5]} 21... Kf7 {[%clk 0:01:15.1]} 22. Nd6+
{[%clk 0:01:47.2]} 22... Kg8 {[%clk 0:01:11.5]} 23. Nhf5 {[%clk 0:01:46]} 23...
Bf8 {[%clk 0:01:05.7]} 24. Bh4 {[%clk 0:01:36.9]} 24... Bxd6 {[%clk 0:01:03.3]}
25. Nxd6 {[%clk 0:01:36.1]} 25... Kg7 {[%clk 0:01:03.2]} 26. Ne8+ {[%clk
0:01:33.9]} 26... Kg6 {[%clk 0:01:02.9]} 27. Nxf6 {[%clk 0:01:27.8]} 27... d6
{[%clk 0:00:56.7]} 28. Ne8 {[%clk 0:01:21.3]} 28... Nc5 {[%clk 0:00:52]} 29.
Nxd6 {[%clk 0:01:17.6]} 29... a6 {[%clk 0:00:45.3]} 30. f3 {[%clk 0:01:16.2]}
30... Be6 {[%clk 0:00:44.3]} 31. Bxe6 {[%clk 0:01:14]} 31... Nxe6 {[%clk
0:00:43.9]} 32. Nxb7 {[%clk 0:01:12.2]} 32... Nb4 {[%clk 0:00:38.6]} 33. a3
{[%clk 0:01:10.8]} 33... Rb8 {[%clk 0:00:37.3]} 34. Nd6 {[%clk 0:01:09.5]} 34...
Na2+ {[%clk 0:00:37.2]} 35. Kb1 {[%clk 0:01:06.5]} 35... Nc3+ {[%clk 0:00:37.1]}
36. Ka1 {[%clk 0:01:06.7]} 36... Na4 {[%clk 0:00:34.4]} 37. Nf5 {[%clk
0:01:04.1]} 37... Rxb2 {[%clk 0:00:32.9]} 38. Bg3 {[%clk 0:00:57.6]} 38... Rxc2
{[%clk 0:00:31.9]} 39. Bxe5 {[%clk 0:00:57.5]} 39... Nc3 {[%clk 0:00:31.7]} 40.
Ne7+ {[%clk 0:00:43.5]} 40... Kf7 {[%clk 0:00:30.4]} 41. Rh7+ {[%clk 0:00:43.3]}
41... Ke8 {[%clk 0:00:30.4]} 42. Rh8+ {[%clk 0:00:32.3]} 42... Kxe7 {[%clk
0:00:28.7]} 43. Rh7+ {[%clk 0:00:32.8]} 43... Ke8 {[%clk 0:00:28.1]} 44. Rh8+
{[%clk 0:00:32.4]} 44... Kd7 {[%clk 0:00:28.1]} 45. Rh7+ {[%clk 0:00:31.4]}
45... Kc6 {[%clk 0:00:27.5]} 46. Bxd4 {[%clk 0:00:18]} 46... Ra2# {[%clk
0:00:25.4]} 0-1

[Event "Late-Titled-Tuesday-Blitz-February-20-2024"]
[Site "Chess.com"]
[Date "2024.02.20"]
[Round "10"]
[White "otrov-11"]
[Black "dolynachess"]
[Result "1-0"]
[WhiteElo "2609"]
[BlackElo "2450"]
[TimeControl "180+1"]
[EndTime "15:54:56 PST"]
[Termination "otrov-11 won on time"]

1. d4 {[%clk 0:03:00.9]} 1... Nf6 {[%clk 0:02:55.5]} 2. c4 {[%clk 0:03:00.7]}
2... c5 {[%clk 0:02:56]} 3. d5 {[%clk 0:03:01.1]} 3... b5 {[%clk 0:02:56.2]} 4.
cxb5 {[%clk 0:03:02]} 4... a6 {[%clk 0:02:56.4]} 5. f3 {[%clk 0:03:02.9]} 5...
g6 {[%clk 0:02:49.3]} 6. e4 {[%clk 0:03:02.9]} 6... d6 {[%clk 0:02:49.7]} 7. Na3
{[%clk 0:03:01.1]} 7... Bg7 {[%clk 0:02:48.7]} 8. Ne2 {[%clk 0:03:01.7]} 8...
O-O {[%clk 0:02:48.6]} 9. Nc3 {[%clk 0:03:02.5]} 9... e6 {[%clk 0:02:47.1]} 10.
Bc4 {[%clk 0:02:59.8]} 10... Re8 {[%clk 0:02:46.8]} 11. O-O {[%clk 0:02:59.6]}
11... Bb7 {[%clk 0:02:45.1]} 12. Bg5 {[%clk 0:02:56.3]} 12... h6 {[%clk
0:02:41.8]} 13. Bh4 {[%clk 0:02:56.7]} 13... g5 {[%clk 0:02:41]} 14. Bg3 {[%clk
0:02:57.2]} 14... exd5 {[%clk 0:02:35.4]} 15. Nxd5 {[%clk 0:02:57.5]} 15... Nxd5
{[%clk 0:02:35.3]} 16. Bxd5 {[%clk 0:02:58.4]} 16... Bxd5 {[%clk 0:02:17.2]} 17.
Qxd5 {[%clk 0:02:59.3]} 17... Ra7 {[%clk 0:02:04.7]} 18. b6 {[%clk 0:02:59.7]}
18... Qxb6 {[%clk 0:01:54.6]} 19. Nc4 {[%clk 0:03:00.4]} 19... Qb4 {[%clk
0:01:39.2]} 20. Nxd6 {[%clk 0:02:59.1]} 20... Rd8 {[%clk 0:01:21.2]} 21. Rad1
{[%clk 0:02:59.7]} 21... Rad7 {[%clk 0:01:18.9]} 22. e5 {[%clk 0:02:46.3]} 22...
Qxb2 {[%clk 0:01:09.3]} 23. e6 {[%clk 0:02:45.8]} 23... fxe6 {[%clk 0:01:08.4]}
24. Qxe6+ {[%clk 0:02:46.7]} 24... Kh7 {[%clk 0:01:08]} 25. Qf5+ {[%clk
0:02:46.9]} 25... Kg8 {[%clk 0:01:06.2]} 26. Qe6+ {[%clk 0:02:36.5]} 26... Kh7
{[%clk 0:01:05.4]} 27. Kh1 {[%clk 0:02:33.3]} 27... Qf6 {[%clk 0:00:57.8]} 28.
Qe4+ {[%clk 0:02:26.3]} 28... Qg6 {[%clk 0:00:57.9]} 29. Qa8 {[%clk 0:01:39.2]}
29... c4 {[%clk 0:00:43]} 30. Rc1 {[%clk 0:01:30.6]} 30... Rxd6 {[%clk
0:00:42.4]} 31. Bxd6 {[%clk 0:01:31.5]} 31... Qxd6 {[%clk 0:00:42.5]} 32. Rxc4
{[%clk 0:01:32.2]} 32... Qd5 {[%clk 0:00:23.9]} 33. Qxd5 {[%clk 0:01:23.7]}
33... Rxd5 {[%clk 0:00:24.8]} 34. h4 {[%clk 0:01:16.7]} 34... Nd7 {[%clk
0:00:22.3]} 35. Rb1 {[%clk 0:01:13.3]} 35... Ne5 {[%clk 0:00:16.9]} 36. Rc7
{[%clk 0:01:13.6]} 36... Kg6 {[%clk 0:00:11.6]} 37. Rb6+ {[%clk 0:01:14.2]}
37... Bf6 {[%clk 0:00:11.2]} 38. hxg5 {[%clk 0:01:12.6]} 38... hxg5 {[%clk
0:00:11.4]} 39. Rxa6 {[%clk 0:01:12.8]} 39... g4 {[%clk 0:00:09]} 40. f4 {[%clk
0:00:52.9]} 40... g3 {[%clk 0:00:08]} 41. Rxf6+ {[%clk 0:00:49.4]} 41... Kxf6
{[%clk 0:00:06.8]} 42. fxe5+ {[%clk 0:00:50]} 42... Kxe5 {[%clk 0:00:06.6]} 43.
Rc1 {[%clk 0:00:50.7]} 43... Rd2 {[%clk 0:00:03.6]} 44. Ra1 {[%clk 0:00:50.8]}
44... Kd5 {[%clk 0:00:03.8]} 45. Kg1 {[%clk 0:00:49]} 45... Kc6 {[%clk
0:00:03.9]} 46. Kf1 {[%clk 0:00:45.4]} 46... Kb5 {[%clk 0:00:04.1]} 47. a4+
{[%clk 0:00:41.4]} 47... Ka5 {[%clk 0:00:04.2]} 48. Ra3 {[%clk 0:00:40.9]} 48...
Rf2+ {[%clk 0:00:03.9]} 49. Kg1 {[%clk 0:00:41.4]} 1-0

[Event "Late-Titled-Tuesday-Blitz-February-20-2024"]
[Site "Chess.com"]
[Date "2024.02.20"]
[Round "10"]
[White "ExchangeAB"]
[Black "krzyzan94"]
[Result "0-1"]
[WhiteElo "2486"]
[BlackElo "2779"]
[TimeControl "180+1"]
[EndTime "15:54:58 PST"]
[Termination "krzyzan94 won by resignation"]

1. d4 {[%clk 0:03:00.9]} 1... Nf6 {[%clk 0:02:59.6]} 2. Nf3 {[%clk 0:03:01.1]}
2... e6 {[%clk 0:02:58.8]} 3. c3 {[%clk 0:03:01.2]} 3... c5 {[%clk 0:02:56.2]}
4. e3 {[%clk 0:03:00.6]} 4... Nc6 {[%clk 0:02:54.6]} 5. Nbd2 {[%clk 0:03:00.4]}
5... b6 {[%clk 0:02:49.4]} 6. Bd3 {[%clk 0:03:00.3]} 6... Bb7 {[%clk 0:02:50]}
7. O-O {[%clk 0:03:00.6]} 7... Qc7 {[%clk 0:02:46.8]} 8. e4 {[%clk 0:02:58.6]}
8... d6 {[%clk 0:02:40]} 9. a3 {[%clk 0:02:56.2]} 9... Be7 {[%clk 0:02:40]} 10.
Qe2 {[%clk 0:02:55.2]} 10... Nd7 {[%clk 0:02:27.6]} 11. Re1 {[%clk 0:02:53.7]}
11... a5 {[%clk 0:02:23.5]} 12. Nf1 {[%clk 0:02:52.6]} 12... h6 {[%clk
0:02:20.2]} 13. Ng3 {[%clk 0:02:51.7]} 13... g5 {[%clk 0:02:20]} 14. d5 {[%clk
0:02:42.5]} 14... Nce5 {[%clk 0:02:12.6]} 15. Nxe5 {[%clk 0:02:36.9]} 15... Nxe5
{[%clk 0:02:13.5]} 16. dxe6 {[%clk 0:02:35.6]} 16... fxe6 {[%clk 0:02:14.3]} 17.
Bb5+ {[%clk 0:02:28.6]} 17... Bc6 {[%clk 0:02:14.4]} 18. Qh5+ {[%clk 0:02:27]}
18... Kd7 {[%clk 0:02:14.7]} 19. Bxc6+ {[%clk 0:02:23.3]} 19... Qxc6 {[%clk
0:02:15.3]} 20. Be3 {[%clk 0:02:16.3]} 20... Raf8 {[%clk 0:02:09.5]} 21. Rad1
{[%clk 0:02:13.3]} 21... Kc7 {[%clk 0:02:07.4]} 22. Qe2 {[%clk 0:02:12.5]} 22...
g4 {[%clk 0:02:00.2]} 23. b4 {[%clk 0:02:07.1]} 23... h5 {[%clk 0:01:53.1]} 24.
bxa5 {[%clk 0:02:03]} 24... bxa5 {[%clk 0:01:53]} 25. Rb1 {[%clk 0:01:58.2]}
25... h4 {[%clk 0:01:51.5]} 26. Nf1 {[%clk 0:01:56.9]} 26... h3 {[%clk
0:01:46.9]} 27. Qb5 {[%clk 0:01:38.6]} 27... Qxb5 {[%clk 0:01:38]} 28. Rxb5
{[%clk 0:01:39.5]} 28... hxg2 {[%clk 0:01:36.8]} 29. Kxg2 {[%clk 0:01:40.4]}
29... Nc4 {[%clk 0:01:08.2]} 30. Reb1 {[%clk 0:01:38.8]} 30... Kc6 {[%clk
0:00:57.5]} 31. Bc1 {[%clk 0:01:34.5]} 31... Bd8 {[%clk 0:00:52.6]} 32. Ne3
{[%clk 0:01:28.8]} 32... Nxe3+ {[%clk 0:00:49.5]} 33. Bxe3 {[%clk 0:01:28.5]}
33... Bc7 {[%clk 0:00:50.1]} 34. e5 {[%clk 0:01:25.5]} 34... Rf5 {[%clk
0:00:34.1]} 35. exd6 {[%clk 0:01:23.8]} 35... Kxd6 {[%clk 0:00:33.1]} 36. c4
{[%clk 0:01:13]} 36... Kc6 {[%clk 0:00:31.6]} 37. Re1 {[%clk 0:01:08.2]} 37...
Rxh2+ {[%clk 0:00:31.4]} 38. Kf1 {[%clk 0:01:05.4]} 38... g3 {[%clk 0:00:31.6]}
39. Re2 {[%clk 0:00:44.5]} 39... gxf2 {[%clk 0:00:19.1]} 40. Rxf2 {[%clk
0:00:43.3]} 40... Rhxf2+ {[%clk 0:00:18.3]} 41. Bxf2 {[%clk 0:00:42.1]} 41...
Bg3 {[%clk 0:00:18.6]} 42. Rb2 {[%clk 0:00:23.1]} 42... Kd6 {[%clk 0:00:15.8]}
43. Re2 {[%clk 0:00:19.6]} 43... Bxf2 {[%clk 0:00:13.1]} 44. Rxf2 {[%clk
0:00:19.9]} 44... Ke5 {[%clk 0:00:12.4]} 45. Rxf5+ {[%clk 0:00:18.9]} 45... exf5
{[%clk 0:00:12.7]} 46. Ke2 {[%clk 0:00:19.4]} 46... Kd4 {[%clk 0:00:13.4]} 0-1